[Event "FIDE Womens Candidates 2024"]
[Site "Toronto"]
[Date "2024.04.17"]
[Round "11.4"]
[White "Vaishali, Rameshbabu"]
[Black "Goryachkina, Aleksandra"]
[Result "1-0"]
[ECO "B22"]
[WhiteElo "2475"]
[BlackElo "2553"]
[Annotator "TA"]
[PlyCount "139"]
[EventDate "2024.04.02"]
[EventType "tourn"]
[EventCountry "CAN"]
[SourceTitle "playchess.com"]
[Source "ChessBase"]
[SourceQuality "1"]
[TimeControl "40/5400+30:1800+30"]

{[%evp 88,139,193,0,0,0,180,0,0,0,0,0,0,0,0,0,0,0,0,0,0,0,0,0,0,0,0,0,0,0,0,0,0,0,0,0,0,0,0,0,0,0,11579,12654,5917,6266,29975,29977,29976,29978,29989,6508,913,876]} 1. e4 {[%emt 0:00:08]} c5 {[%emt 0:00:19]} 2. c3 {[%emt 0:00:10]} Nf6 {[%emt 0:00:46]} 3. e5 {[%emt 0:00:06]} Nd5 {[%emt 0:00:10]} 4. Bc4 {[%emt 0:00:09]} Nb6 {[%emt 0:01:13]} 5. Bb3 {[%emt 0:00:06]} Nc6 {[%emt 0:01:12]} 6. d4 {[%emt 0:02:02]} cxd4 {[%emt 0:03:03]} 7. cxd4 {[%emt 0:00:04]} d5 {[%emt 0:07:45]} 8. Bc2 {[%emt 0:02:00] now supersedes 8.Nc3. B22: Sicilian: 2 c3.} Nb4 {[%emt 0:03:55]} 9. Nc3 {[%emt 0:00:24]} Bg4 {[%emt 0:05:00]} 10. Nge2 {[%emt 0:07:18]} Bxe2 {[%emt 0:05:12]} 11. Qxe2 {[%emt 0:04:38]} Nxc2+ {[%emt 0:00:10]} 12. Qxc2 {[%emt 0:00:03]} e6 {[%emt 0:00:22]} 13. Qd3 $146 {[%emt 0:05:20]} ({Predecessor:} 13. a4 Be7 14. f4 g6 15. a5 Nd7 16. Qb3 O-O 17. O-O f5 18. a6 b5 19. Qxb5 {0-1 Beerdsen,T (2482)-Lombaers,P (2375) BEL-chT 1920 2019 (8.4)}) 13... Rc8 {[%emt 0:02:32]} 14. O-O {[%emt 0:06:05]} a6 {[%emt 0:01:18]} 15. Qg3 {[%emt 0:02:45]} g6 {[%emt 0:01:27]} 16. Bg5 {[%emt 0:03:41]} Be7 {[%emt 0:01:23]} 17. Bh6 {[%emt 0:02:37]} Bf8 {[%emt 0:03:13]} 18. Bg5 {[%emt 0:04:44]} Be7 {[%emt 0:00:36]} 19. Bh6 {[%emt 0:00:12]} Rc4 {[%emt 0:03:43]} 20. Rfd1 {[%emt 0:06:10]} Bf8 {[%emt 0:02:23]} 21. Bg5 {[%emt 0:02:19]} Qc7 {[%emt 0:03:24]} 22. Rac1 {[%emt 0:13:22]} Bg7 {[%emt 0:02:35]} 23. b3 {[%emt 0:00:35]} Rc6 {[%emt 0:00:33]} 24. Ne2 {[%emt 0:02:09]} O-O {[%emt 0:03:21]} 25. h4 {[%emt 0:05:31]} Rc8 {[%emt 0:06:04]} 26. h5 {[%emt 0:02:56]} Rc2 {[%emt 0:04:34]} 27. Qg4 {[%emt 0:07:27]} Qd7 {[%emt 0:04:02]} 28. Rxc2 {[%emt 0:03:12]} Rxc2 {[%emt 0:00:03]} 29. hxg6 {[%emt 0:05:30]} fxg6 {[%emt 0:03:29]} 30. Nf4 {[%emt 0:00:08]} Rc6 {[%emt 0:00:59]} 31. Rd3 {[%emt 0:02:15]} Qf7 {[%emt 0:02:42]} 32. Qh4 {[%emt 0:01:38]} Nd7 {[%emt 0:02:22]} 33. Rh3 {[%emt 0:03:39]} Nf8 {[%emt 0:02:18]} 34. Be7 {[%emt 0:00:56]} Qf5 {[%emt 0:03:58]} 35. Nd3 {[%emt 0:04:14]} Rc3 {[%emt 0:06:08]} 36. Rf3 {[%emt 0:00:40]} Qe4 {[%emt 0:09:38]} 37. Qh3 {[%emt 0:00:05]} Rc6 {[%emt 0:00:13]} 38. Rf4 {[%emt 0:01:01]} Qe2 {[%emt 0:00:08]} 39. Bf6 {[%emt 0:02:19]} h6 {[%emt 0:05:09]} 40. Bxg7 {[%emt 0:00:00]} Kxg7 {[%emt 0:00:00]} 41. Rxf8 {[%emt 0:12:02]} Kxf8 {[%emt 0:02:55]} 42. Qxh6+ {[%emt 0:00:03]} Ke7 {[%emt 0:03:50]} 43. Qxg6 {[%emt 0:01:28]} Qe4 {[%emt 0:07:39]} 44. Qg7+ {[%emt 0:03:20]} Ke8 $2 {[%emt 0:01:14]} (44... Kd8 $11 45. Nc5 (45. Qxb7 Qxd3 46. Qxc6 Qd1+ 47. Kh2 Qh5+ 48. Kg3 Qg5+ 49. Kh3 Qh5+ 50. Kg3 Qg6+ 51. Kh4 Qh6+ 52. Kg4 Qg6+ 53. Kf4 Qf5+ 54. Kg3 Qg6+ 55. Kh2 Qh5+ 56. Kg1 Qd1+ $11)) 45. Qg8+ $2 {[%emt 0:03:39]} (45. Qxb7 Rc3 46. Qxa6 Qxd3 (46... Rxd3 47. Qc6+ Kd8 48. Qb6+ Ke8 49. Qxe6+ Kd8 50. Qb6+ Kc8 51. Qa6+ Kd8 52. Qf6+ Ke8 53. Qe6+ Kd8 54. Qd6+ Ke8 55. Qe6+ $11) 47. Qxe6+ Kd8 48. Qxd5+ Kc8 49. Qe6+ Kc7 50. Qe7+ Kc8 51. Qf8+ Kc7 52. Qe7+ Kc8 53. Qe8+ Kb7 54. Qd7+ Rc7 55. Qd5+ Rc6 $11) ({Only move:} 45. Nc5 $1 $18 Rxc5 46. Qg8+ (46. dxc5 Qe1+ 47. Kh2 Qxf2 $14) 46... Ke7 47. Qg7+ (47. dxc5 Qe1+ 48. Kh2 Qxe5+ 49. g3 d4 $11) 47... Ke8 48. dxc5 Qe1+ 49. Kh2 Qxf2 50. Qg4 (50. Qxb7 Qh4+ 51. Kg1 Qe1+ 52. Kh2 Qh4+ 53. Kg1 Qd4+ 54. Kh2 Qf4+ 55. g3 Qxe5 $11) (50. Qf6 Qf5 $16)) 45... Ke7 $11 {[%emt 0:01:36]} 46. Qg7+ $2 {[%emt 0:05:34]} (46. Nc5 $11 Qe1+ 47. Kh2 Qxf2 48. Qg5+ Ke8 49. Nxb7 Qxd4 50. Qg8+ (50. Qd8+ Kf7 $11) 50... Ke7 51. Qg7+ (51. Qd8+ Kf7 $11) 51... Ke8 52. Qg8+ Ke7 53. Qg5+ (53. Qd8+ Kf7 $11) 53... Ke8 54. Na5 (54. Qd8+ Kf7 $11)) 46... Ke8 $18 {[%emt 0:00:06]} 47. Qg8+ $2 {[%emt 0:00:03]} ({Worse is} 47. Qxb7 Rc3 48. Qxa6 Qxd3 (48... Rxd3 49. Qxe6+ Kf8 50. Qf6+ Kg8 51. Qe6+ Kg7 52. Qe7+ Kh6 53. Qf8+ Kg6 54. Qg8+ Kh5 55. Qh8+ Kg5 56. Qd8+ Kh5 57. Qh8+ Kg6 58. Qg8+ Kh6 59. Qf8+ Kg6 60. Qf6+ Kh7 61. Qf7+ Kh6 62. Qf8+ $11) 49. Qxe6+ Kd8 50. Qxd5+ Kc7 51. Qa5+ Kb7 52. Qb4+ Ka7 53. Qa5+ Kb7 54. Qb4+ Kc7 55. Qa5+ Kd7 56. Qa7+ Kc8 57. Qa8+ Kd7 58. Qd5+ Kc8 59. Qa8+ Kc7 60. Qa7+ Kd8 61. Qb8+ Kd7 62. Qd6+ Kc8 63. Qf8+ Kd7 64. Qf7+ Kc8 $11) (47. Nc5 $1 $18 {[%cal Rc5e4]} Rxc5 48. dxc5 Qe1+ 49. Kh2 Qxf2 50. Qf6 (50. Qxb7 Qh4+ 51. Kg1 Qe1+ 52. Kh2 Qh4+ 53. Kg1 Qd4+ 54. Kh2 Qxe5+ 55. g3 Qe3 $11) 50... Qxc5 51. Qxe6+ Kd8 52. Qg8+ Ke7 53. Qg7+ Ke8 54. Qxb7) 47... Ke7 $11 {[%emt 0:00:04]} 48. Nc5 {[%emt 0:02:24]} Qe1+ {[%emt 0:05:13]} 49. Kh2 {[%emt 0:00:03]} Qxf2 {[%emt 0:02:52]} 50. Qg5+ {[%emt 0:00:27]} Ke8 {[%emt 0:04:36]} 51. Nxb7 {[%emt 0:00:31]} Qxd4 {[%emt 0:02:14]} 52. Qg8+ {[%emt 0:06:27]} Ke7 {[%emt 0:00:02]} 53. Qg5+ {[%emt 0:00:02]} Ke8 $1 {[%emt 0:00:08]} 54. Qd8+ {[%emt 0:02:12]} Kf7 {[%emt 0:00:02]} 55. Qf6+ {[%emt 0:00:04]} Ke8 $1 {[%emt 0:01:40]} 56. Qg6+ {[%emt 0:00:54]} Ke7 {[%emt 0:00:29]} 57. Qh7+ {[%emt 0:00:35]} Ke8 {[%emt 0:01:55]} 58. Qg8+ {[%emt 0:00:13]} Ke7 {[%emt 0:00:23]} 59. Qg5+ {[%emt 0:00:05]} Ke8 $1 {[%emt 0:00:53]} 60. Nd6+ {[%emt 0:00:58]} Rxd6 {[%emt 0:00:14]} 61. exd6 {[%emt 0:00:02]} Qh8+ {[%emt 0:00:23]} 62. Kg3 {[%emt 0:00:21]} Qc3+ {[%emt 0:00:01]} 63. Kg4 {[%emt 0:00:28]} (63. Kh2 $5 Qh8+ $8 64. Kg3 Qc3+ 65. Kg4 Qd4+ 66. Kh3 Qd3+ 67. Kh2 Qh7+ 68. Kg3 Qd3+ 69. Kh4 Qe4+ 70. g4 Qh1+ 71. Kg3 Qg1+ 72. Kf3 Qf1+ 73. Kg3 Qg1+ 74. Kf3 Qf1+ 75. Kg3 Qe1+ 76. Kg2 Qe2+ 77. Kh3 Qf3+ 78. Kh2 Qf2+ 79. Kh3 Qf1+ 80. Kg3 $11) 63... Qb4+ {[%emt 0:01:02]} 64. Qf4 {[%emt 0:00:15]} d4 $2 {[%emt 0:01:13][%mdl 8192] [#]} (64... Qa5 $11) 65. Qe5 $1 $18 {[%emt 0:01:10]} d3+ {[%emt 0:02:53]} 66. Kf3 {[%emt 0:00:11]} Kf7 {[%emt 0:00:50]} 67. d7 {[%emt 0:01:05]} Qb7+ {[%emt 0:01:32] [#]} 68. Qe4 $1 {[%emt 0:00:06]} d2 {[%emt 0:00:37]} 69. d8=N+ {[%emt 0:00:11]} ({Less strong is} 69. Qxb7 d1=Q+ 70. Ke3 Qc1+ 71. Kd4 Ke7 $16) (69. d8=Q $142 Qd5 70. Qdxd5 exd5 71. Qxd5+ Kf6 72. Qxd2 Ke7 73. a4 Kf6 74. Qd6+ Kf7 75. Kf4 (75. Qxa6 Kg7 76. Qe6 Kh7 77. a5 Kh8 78. a6 Kh7 79. a7 Kg7 80. a8=Q Kh7 81. Qag8#)) 69... Kf6 $18 {[%emt 0:00:21]} 70. Nxb7 {[%emt 0:00:07]} 1-0

[Event "FIDE Womens Candidates 2024"]
[Site "Toronto"]
[Date "2024.04.18"]
[Round "12.2"]
[White "Lagno, Kateryna"]
[Black "Lei, Tingjie"]
[Result "1/2-1/2"]
[ECO "C02"]
[WhiteElo "2542"]
[BlackElo "2550"]
[Annotator "TA"]
[PlyCount "80"]
[EventDate "2024.04.02"]
[EventType "tourn"]
[EventCountry "CAN"]
[SourceTitle "playchess.com"]
[Source "ChessBase"]
[SourceQuality "1"]
[TimeControl "40/5400+30:1800+30"]

{[%evp 17,80,29,19,16,26,25,32,-13,0,-42,-41,-106,-105,-125,-111,-148,-144,-144,-114,-201,-196,-191,-162,-156,-147,-130,-135,-116,-127,-307,-297,-282,-256,-327,-343,-286,0,0,0,0,0,0,0,0,0,0,0,0,0,0,0,0,0,0,0,0,0,0,0,0,0,0,0,0,0]} 1. e4 {[%emt 0:00:05][%cal Be2e4,Be4e5][%mdl 32]} e6 {[%emt 0:00:17]} 2. d4 {[%emt 0:00:08]} d5 {[%emt 0:00:08]} 3. e5 {[%emt 0:00:12]} c5 {[%emt 0:00:27]} 4. c3 {[%emt 0:00:06]} Nc6 {[%emt 0:00:05]} 5. Nf3 {[%emt 0:00:08]} Bd7 {[%emt 0:00:09]} 6. Be2 {[%emt 0:00:19]} f6 {[%emt 0:00:14]} 7. O-O {[%emt 0:01:06]} fxe5 {[%emt 0:00:10]} 8. Nxe5 {[%emt 0:00:13]} Nxe5 {[%emt 0:00:06]} 9. dxe5 {[%emt 0:00:03]} Qc7 {[%emt 0:00:06]} 10. Bf4 {[%emt 0:00:28]} Ne7 {[%emt 0:00:13]} 11. c4 {[%emt 0:03:55]} O-O-O {[%emt 0:04:03]} 12. Nd2 {[%emt 0:18:29] White is slightly better.} h6 {[%emt 0:06:49]} 13. Bg3 {[%emt 0:04:13]} Nf5 {[%emt 0:05:11]} 14. Nf3 {[%emt 0:11:08]} (14. cxd5 $15 Nxg3 15. hxg3 exd5 16. Nf3) 14... Bc6 $17 {[%emt 0:04:16]} 15. cxd5 {[%emt 0:03:26]} Bxd5 {[%emt 0:02:54]} 16. Qa4 {[%emt 0:02:36]} Kb8 {[%emt 0:00:16]} 17. Rfd1 {[%emt 0:05:39]} Be7 {[%emt 0:04:38]} 18. Rac1 {[%emt 0:06:28]} (18. Bd3 $17 {is a better defense.} g5 19. Rab1) 18... g5 $19 {[%emt 0:10:28]} 19. Bd3 {[%emt 0:12:54]} Bxf3 {[%emt 0:06:47]} 20. gxf3 {[%emt 0:00:04]} Nd4 $1 {[%emt 0:07:51][%cal Oh6h5] ...h5! would now be deadly.} 21. Kg2 {[%emt 0:01:24]} h5 {[%emt 0:00:40]} 22. h3 {[%emt 0:00:05]} g4 {[%emt 0:04:38]} 23. hxg4 $2 {[%emt 0:14:48]} (23. f4 $17 {is the only way for White.}) 23... hxg4 {[%emt 0:00:05]} 24. f4 {[%emt 0:00:04] [#]} (24. fxg4 Bh4 25. Bg6 Qg7 (25... Bxg3 $2 26. Rxd4 Bxf2 27. Rxd8+ Qxd8 28. Rh1 $19) 26. Rxc5 Bxg3 27. Rxd4 Bxf2 28. Rxd8+ Rxd8 $19) 24... Bh4 $1 {[%emt 0:14:12]} 25. Be4 {[%emt 0:00:39]} Bxg3 {[%emt 0:01:14]} 26. fxg3 {[%emt 0:00:04] [#]} Nf3 $2 {[%emt 0:06:16]} 27. Bxf3 $11 {[%emt 0:01:10] The position is equal.} (27. Rxd8+ $2 Qxd8 28. Qd1 Rh2+ 29. Kf1 Rh1+ 30. Ke2 Rxd1 $19) 27... gxf3+ {[%emt 0:00:04]} 28. Kxf3 {[%emt 0:00:21] aiming for Rxd8+.} Qh7 {[%emt 0:00:12]} 29. Qc2 {[%emt 0:03:15] Wards off Rd3+} (29. Rxc5 $2 Qh5+ 30. Ke3 Rxd1 $19) (29. Rxd8+ Rxd8 30. Rf1 Qh2 $17) 29... Qh5+ {[%emt 0:02:11]} 30. Ke3 {[%emt 0:00:14]} Qg4 {[%emt 0:07:51]} 31. Rxd8+ {[%emt 0:01:59]} Rxd8 {[%emt 0:00:04][%mdl 4096] Endgame. KQR-KQR} 32. Rg1 {[%emt 0:00:44]} (32. Qxc5 $2 {loses.} Qxg3+ 33. Ke2 Qg2+ (33... Qxf4 34. Qc7+ Ka8 35. Qxd8#) 34. Ke1 Qd2+ (34... Qxb2 35. Qc7+ Ka8 36. Qxd8#) 35. Kf1 Qxf4+ 36. Ke2 Qd2+ 37. Kf1 a6 $19 (37... Qxb2 38. Qc7+ Ka8 39. Qxd8#)) 32... b6 {[%emt 0:00:19]} 33. b3 {[%emt 0:02:12]} Rd4 {[%emt 0:01:50]} 34. Qh7 {[%emt 0:03:51]} Rxf4 {[%emt 0:05:14]} 35. gxf4 {[%emt 0:00:05]} Qxg1+ {[%emt 0:00:03] KQ-KQ} 36. Kf3 {[%emt 0:00:03]} Qd1+ {[%emt 0:01:14]} 37. Ke3 {[%emt 0:01:01]} Qe1+ {[%emt 0:00:09]} 38. Kf3 {[%emt 0:00:04] Strongly threatening Qg8+.} Qd1+ {[%emt 0:00:09]} 39. Ke3 {[%emt 0:00:04] Qg8+ is the strong threat.} Qe1+ {[%emt 0:00:24]} 40. Kf3 {[%emt 0:00:00] And now Qg8+ would win.} Qd1+ {[%emt 0:00:00] White happily takes the draw.   Weighted Error Value: White=0.15 (very precise) /Black=0.20 (precise) .  Loses game:     	White=1     	---        Missed win:     	---       	Black=1      Mistake:       	White=2     	---        Inaccurate:     	White=3     	---        OK:         	White=8     	Black=15     Best:        	White=5     	Black=3      Strong:       	---       	Black=2} 1/2-1/2

[Event "FIDE Womens Candidates 2024"]
[Site "Toronto"]
[Date "2024.04.18"]
[Round "12.4"]
[White "Goryachkina, Aleksandra"]
[Black "Koneru, Humpy"]
[Result "1/2-1/2"]
[ECO "E05"]
[WhiteElo "2553"]
[BlackElo "2546"]
[Annotator "TA"]
[PlyCount "49"]
[EventDate "2024.04.02"]
[EventType "tourn"]
[EventCountry "CAN"]
[SourceTitle "playchess.com"]
[Source "ChessBase"]
[SourceQuality "1"]
[TimeControl "40/5400+30:1800+30"]

{[%evp 14,49,10,12,35,37,36,29,28,22,28,-8,-16,-20,-19,-11,-29,-7,-6,-6,-8,-55,-45,-43,-45,-45,-50,-44,-52,-241,-222,-217,0,-111,0,-214,0,-90]} 1. d4 {[%emt 0:00:07]} Nf6 {[%emt 0:00:14]} 2. c4 {[%emt 0:00:08]} e6 {[%emt 0:00:13]} 3. Nf3 {[%emt 0:00:26]} d5 {[%emt 0:00:28]} 4. g3 {[%emt 0:00:12]} Be7 {[%emt 0:00:23]} 5. Bg2 {[%emt 0:00:11]} O-O {[%emt 0:00:27]} 6. O-O {[%emt 0:00:14]} dxc4 {[%emt 0:00:28]} 7. Qc2 {[%emt 0:00:30]} a6 {[%emt 0:00:23]} 8. a4 {[%emt 0:00:29]} h6 {[%emt 0:00:30]} 9. Rd1 {[%emt 0:02:24][%cal Ob1d2][%mdl 1024] White has compensation.} Nc6 {[%emt 0:00:51]} 10. Bd2 {[%emt 0:01:23]} Re8 {[%emt 0:01:09] White has an edge.} 11. e3 {[%emt 0:04:09][%cal Ob1a3]} Rb8 {[%emt 0:10:55]} 12. Na3 {[%emt 0:13:56]} b5 {[%emt 0:13:49]} 13. axb5 {[%emt 0:08:30]} axb5 {[%emt 0:01:18]} 14. Ne5 $1 {[%emt 0:01:42] Wards off Bd7} Nxe5 {[%emt 0:00:33]} 15. dxe5 {[%emt 0:00:05]} Nd7 $36 {[%emt 0:03:11][%mdl 2048] Black has good play.} 16. Ba5 $1 {[%emt 0:12:58]} Bb7 {[%emt 0:06:33] Prevents Bc6.} 17. Nxc4 {[%emt 0:08:22]} bxc4 {[%emt 0:29:41]} 18. Bxb7 {[%emt 0:03:45]} Rxb7 {[%emt 0:00:32]} 19. Qa4 {[%emt 0:00:31] [#]} Ra7 $1 {[%emt 0:00:45][%cal Oe7f8]} 20. Rxd7 {[%emt 0:03:34]} (20. Qxd7 Qxd7 21. Rxd7 Bf8 (21... Bb4 $2 22. Bxb4 Rxa1+ 23. Kg2 $19) 22. Rxc7 Rea8 23. Rxa7 Rxa7 $19) 20... Qb8 {[%emt 0:00:19][%cal Oc4c3] Strongly threatening ...c3!} 21. Rdd1 $2 {[%emt 0:13:20]} ({White should play} 21. Qd1 $1 $15) 21... Qa8 $19 {[%emt 0:03:13] Hoping for ...Rb8.} 22. Rd7 {[%emt 0:00:50]} Qb8 {[%emt 0:10:02]} (22... Bd8 $1 $19 {aiming for ...Ra6.} 23. Ra3 Ra6) 23. Rdd1 {[%emt 0:00:16] [#]} (23. Qxc4 Bb4 (23... Qxb2 24. Qc3 $11) 24. Qf4 (24. Qxb4 Qxb4 25. Bxb4 Rxa1+ 26. Kg2 Rc1 $17) 24... Rf8 (24... Rxa5 25. Qxf7+ Kh8 26. Qxg7#) 25. Qxb4 Qxb4 26. Bxb4 Rxa1+ 27. Kg2 Rb8 $17) (23. Rc1 $11 {keeps the balance.}) 23... Qa8 {[%emt 0:04:24]} (23... c3 $1 $17 {[%cal Rc3b2]} 24. bxc3 Rc8) 24. Rd7 $1 {[%emt 0:00:08] [#]} Qb8 {[%emt 0:02:06]} (24... Bd8 $1 $19 {is more deadly. And now ...Ra6 would win.} 25. Ra3 Ra6) 25. Rdd1 {[%emt 0:00:30] Weighted Error Value: White=0.25 (precise) /Black=0.47.  Loses game:     	White=1     	---        Missed win:     	---       	Black=1      Mistake:       	White=2     	Black=2      Inaccurate:     	White=1     	---        OK:         	White=6     	Black=8      Best:        	White=3     	Black=2      Strong:       	White=3     	---} ({Reject} 25. Qxc4 Bb4 (25... Qxb2 26. Qf1 $11) 26. Qf4 (26. Qxb4 Qxb4 27. Bxb4 Rxa1+ 28. Kg2 Rc1 $17) 26... Rf8 (26... Rxa5 27. Qxf7+ Kh8 28. Qxg7#) 27. Qxb4 Qxb4 28. Bxb4 Rxa1+ 29. Kg2 Rb8 $17) 1/2-1/2

[Event "FIDE Womens Candidates 2024"]
[Site "Toronto"]
[Date "2024.04.20"]
[Round "13.1"]
[White "Vaishali, Rameshbabu"]
[Black "Lei, Tingjie"]
[Result "1-0"]
[ECO "B51"]
[WhiteElo "2475"]
[BlackElo "2550"]
[Annotator "TA"]
[PlyCount "133"]
[EventDate "2024.04.02"]
[EventType "tourn"]
[EventCountry "CAN"]
[SourceTitle "playchess.com"]
[Source "ChessBase"]
[SourceQuality "1"]
[TimeControl "40/5400+30:1800+30"]

{[%evp 63,133,0,37,16,12,23,28,27,29,5,0,0,14,10,11,11,7,0,0,0,0,0,0,0,10,0,17,15,23,21,20,15,25,17,14,0,18,0,20,15,47,47,62,57,64,0,58,0,72,18,18,14,14,14,14,0,0,0,0,0,149,149,29980,29981,29980,29981,29983,29984,29984,29985,29985,29986]} 1. e4 {[%emt 0:00:07]} c5 {[%emt 0:00:29]} 2. Nf3 {[%emt 0:00:07]} d6 {[%emt 0:00:09]} 3. Bb5+ {[%emt 0:00:08]} Nd7 {[%emt 0:00:10]} 4. Ba4 {[%emt 0:00:37]} Ngf6 {[%emt 0:09:23]} 5. O-O {[%emt 0:01:09]} e6 {[%emt 0:02:49]} 6. Re1 {[%emt 0:05:51] B51: Sicilian: Moscow Variation (3 Bb5+) without 3...Bd7.} Be7 {[%emt 0:00:08]} 7. c3 {[%emt 0:01:38]} O-O {[%emt 0:02:24]} 8. d4 {[%emt 0:00:13]} Qc7 {[%emt 0:01:14]} 9. Nbd2 {[%emt 0:01:52]} Rd8 $146 {[%emt 0:10:08]} ({Predecessor:} 9... a6 10. Nf1 b5 11. Bc2 Bb7 12. Bg5 Rac8 13. Rc1 e5 14. Ng3 Rfe8 15. Nf5 Nf8 {1-0 Lammens,T (2250)-Veiga,E (2106) Titled Tuesday intern op 21st July blitz 2020 (10)}) 10. e5 {[%emt 0:14:15]} Nd5 {[%emt 0:05:00]} 11. exd6 {[%emt 0:02:57]} Bxd6 {[%emt 0:00:06]} 12. Ne4 {[%emt 0:00:05]} Bf8 {[%emt 0:04:34]} 13. Bg5 {[%emt 0:04:49]} f6 {[%emt 0:02:36]} 14. Bh4 {[%emt 0:00:25]} cxd4 {[%emt 0:00:45]} 15. cxd4 {[%emt 0:07:16]} N7b6 {[%emt 0:00:06]} 16. Bc2 {[%emt 0:06:19]} Nc4 {[%emt 0:19:21]} 17. Bg3 {[%emt 0:08:07]} Nd6 {[%emt 0:12:28]} 18. Rc1 {[%emt 0:15:04]} Qb6 {[%emt 0:03:58]} 19. Nxd6 {[%emt 0:03:16]} Bxd6 {[%emt 0:00:06]} 20. Qd3 {[%emt 0:00:08]} g6 {[%emt 0:00:47]} 21. Bb3 {[%emt 0:03:10]} Bb4 {[%emt 0:10:24]} 22. Red1 {[%emt 0:06:20]} a5 {[%emt 0:00:42]} 23. Nh4 {[%emt 0:05:41]} Kg7 {[%emt 0:02:43]} 24. a3 {[%emt 0:04:28]} Bd6 {[%emt 0:00:38]} 25. Nf3 {[%emt 0:05:28]} Bd7 {[%emt 0:01:37]} 26. Bxd6 {[%emt 0:00:55]} Qxd6 {[%emt 0:00:05]} 27. Nd2 {[%emt 0:00:33]} Bc6 {[%emt 0:07:03]} 28. Ne4 {[%emt 0:00:23]} Qf4 {[%emt 0:00:05]} 29. Nc5 {[%emt 0:01:00]} Re8 {[%emt 0:00:04]} 30. Re1 {[%emt 0:01:43]} Rad8 {[%emt 0:00:37]} 31. Qh3 {[%emt 0:01:05]} f5 {[%emt 0:03:38]} 32. Rcd1 {[%emt 0:00:32]} Qd6 {[%emt 0:01:15]} 33. Nd3 {[%emt 0:00:39]} Nf6 {[%emt 0:00:25]} 34. Ne5 {[%emt 0:00:23]} Be4 {[%emt 0:00:11]} 35. Qc3 {[%emt 0:00:37]} b6 {[%emt 0:00:42]} 36. f3 {[%emt 0:00:27]} Bd5 {[%emt 0:00:21]} 37. Ba4 {[%emt 0:00:33]} Rf8 {[%emt 0:00:55]} 38. Rc1 {[%emt 0:00:30]} Rc8 $1 {[%emt 0:00:16]} 39. Qd2 {[%emt 0:00:34]} ({Much weaker is} 39. Qxc8 Rxc8 40. Rxc8 Bb7 $17) 39... Rfd8 {[%emt 0:00:24]} 40. Rc3 {[%emt 0:00:00]} Rxc3 {[%emt 0:00:00]} 41. Qxc3 {[%emt 0:04:06]} Bb7 {[%emt 0:00:42]} 42. Rd1 {[%emt 0:01:53]} Rc8 {[%emt 0:02:44]} 43. Qe3 {[%emt 0:02:33]} Bd5 {[%emt 0:03:32]} 44. Kf2 {[%emt 0:06:57]} Qb8 {[%emt 0:03:41]} 45. Rc1 {[%emt 0:02:14]} Rxc1 {[%emt 0:05:23]} 46. Qxc1 {[%emt 0:00:02]} Qd8 {[%emt 0:00:11]} 47. Qe3 {[%emt 0:02:12]} Qc7 {[%emt 0:06:12]} 48. Qc3 {[%emt 0:00:24]} Qd8 {[%emt 0:00:05]} 49. Qe3 {[%emt 0:01:30]} Qc7 {[%emt 0:00:09]} 50. h3 {[%emt 0:01:15]} Qd8 {[%emt 0:00:44]} 51. g4 {[%emt 0:01:29]} fxg4 {[%emt 0:05:07]} 52. hxg4 {[%emt 0:00:24]} Bb7 {[%emt 0:01:54]} 53. Bb3 {[%emt 0:06:52]} Bd5 {[%emt 0:03:49]} 54. Ba4 {[%emt 0:00:15]} Bb7 $1 {[%emt 0:00:07]} 55. Bb3 {[%emt 0:00:34]} Bd5 {[%emt 0:00:04] [#]} 56. Bc2 {[%emt 0:00:44]} (56. g5 $1 $16 {[%cal Rg5f6]} Nh5 57. Bxd5 Qxd5 58. f4) 56... Nd7 $11 {[%emt 0:01:02]} 57. Nxd7 {[%emt 0:02:33]} Qxd7 {[%emt 0:00:03]} 58. Qe5+ {[%emt 0:00:05]} Kg8 $1 {[%emt 0:00:49]} 59. Kg3 {[%emt 0:01:14]} Qc6 {[%emt 0:01:17]} 60. Be4 {[%emt 0:00:30]} Bxe4 {[%emt 0:02:20]} 61. fxe4 {[%emt 0:00:02]} Kf7 {[%emt 0:00:13]} (61... h6 $11 {remains equal.}) 62. g5 $16 {[%emt 0:01:06]} Qc1 $2 {[%emt 0:01:20][%mdl 8192]} (62... Qc8 $16 63. Qf6+ Kg8) 63. Qf4+ {[%emt 0:00:52]} ({Stronger than} 63. Qf6+ Kg8 $11) 63... Qxf4+ {[%emt 0:00:07]} 64. Kxf4 {[%emt 0:00:03]} a4 {[%emt 0:00:55]} 65. Ke5 {[%emt 0:00:10]} Ke7 {[%emt 0:00:03]} 66. d5 {[%emt 0:00:11]} exd5 {[%emt 0:00:11]} 67. exd5 {[%emt 0:00:09]} 1-0

[Event "FIDE Womens Candidates 2024"]
[Site "Toronto"]
[Date "2024.04.20"]
[Round "13.3"]
[White "Tan, Zhongyi"]
[Black "Goryachkina, Aleksandra"]
[Result "1/2-1/2"]
[ECO "D50"]
[WhiteElo "2521"]
[BlackElo "2553"]
[Annotator "TA"]
[PlyCount "58"]
[EventDate "2024.04.02"]
[EventType "tourn"]
[EventCountry "CAN"]
[SourceTitle "playchess.com"]
[Source "ChessBase"]
[SourceQuality "1"]
[TimeControl "40/5400+30:1800+30"]

{[%evp 9,58,10,20,16,29,-10,0,-1,0,-20,-17,-16,-18,-7,-17,-16,0,0,0,-14,0,-11,0,0,0,0,5,7,13,8,14,9,27,15,16,0,22,0,0,0,0,0,0,0,0,0,0,0,0,0,0]} 1. d4 {[%emt 0:00:05]} d5 {[%emt 0:00:06]} 2. c4 {[%emt 0:00:05]} e6 {[%emt 0:00:07]} 3. Nc3 {[%emt 0:00:07]} Nf6 {[%emt 0:00:13]} 4. Bg5 {[%emt 0:00:08]} dxc4 {[%emt 0:00:29]} 5. e3 {[%emt 0:00:23]} a6 {[%emt 0:00:27]} 6. Bxc4 {[%emt 0:01:16]} c5 {[%emt 0:00:40]} 7. dxc5 {[%emt 0:04:17]} Qxd1+ {[%emt 0:03:24]} 8. Rxd1 {[%emt 0:00:04]} Bxc5 {[%emt 0:00:30]} 9. Ne4 {[%emt 0:11:09]} Bb4+ {[%emt 0:05:45]} 10. Ke2 {[%emt 0:00:05]} Nbd7 {[%emt 0:01:43]} 11. Nxf6+ {[%emt 0:03:35]} gxf6 {[%emt 0:07:58]} 12. Bh4 {[%emt 0:00:06][%cal Bg5h4,Bh4g3,Bg3f4][%mdl 32]} b5 {[%emt 0:03:07]} 13. Bd3 {[%emt 0:00:43]} Bb7 {[%emt 0:00:32] Against Be4} 14. f3 {[%emt 0:07:35]} Be7 {[%emt 0:06:12]} 15. Nh3 {[%emt 0:00:57]} Ne5 {[%emt 0:03:29]} 16. Bb1 {[%emt 0:01:13]} Ng6 {[%emt 0:06:42]} 17. Bg3 {[%emt 0:01:59]} f5 {[%emt 0:02:27]} 18. Nf4 {[%emt 0:00:55]} Nxf4+ {[%emt 0:03:22]} 19. Bxf4 {[%emt 0:00:14]} Rg8 {[%emt 0:03:14]} 20. Kf2 {[%emt 0:00:27]} Rd8 {[%emt 0:03:53]} 21. Rxd8+ {[%emt 0:01:25]} Bxd8 {[%emt 0:01:04] The position is equal.} 22. Rd1 {[%emt 0:03:02]} Bh4+ {[%emt 0:07:59]} 23. Bg3 {[%emt 0:00:58]} Bxg3+ {[%emt 0:01:28]} 24. hxg3 $11 {[%emt 0:00:08][%mdl 4096] Endgame. KRB-KRB} Ke7 {[%emt 0:00:25]} 25. Rh1 {[%emt 0:00:57]} Rd8 {[%emt 0:03:58]} 26. Ke2 {[%emt 0:00:13] Prevents Rd2+} Rg8 {[%emt 0:01:00]} 27. Kf2 {[%emt 0:00:07]} Rd8 {[%emt 0:00:07]} 28. Ke2 {[%emt 0:00:13] Inhibits Rd2+.} Rg8 {[%emt 0:00:06]} 29. Kf2 {[%emt 0:00:08]} Rd8 {[%emt 0:01:03] An uneventful encounter.   Weighted Error Value: White=0.07 (flawless) /Black=0.05 (flawless) .  Inaccurate:     	White=1     	---        OK:         	White=10    	Black=10     Best:        	---       	Black=1} 1/2-1/2